bitfinex-derivatives/quotes_BTCF0:USTF0_20250608
["timestamp","ask_amount","ask_price","bid_price","bid_amount"]
[1749342814845,0.46779344,105670.0,105660.0,1.81662502]
[1749342815047,0.82779344,105670.0,105660.0,1.81662502]
[1749342815240,0.46779344,105670.0,105660.0,1.81662502]
[1749342815545,0.33779344,105670.0,105660.0,1.81662502]
[1749342816346,0.33779344,105670.0,105660.0,1.74273813]
[1749342817444,0.45583666,105670.0,105660.0,1.74273813]
[1749342818047,0.35615666,105670.0,105660.0,1.74273813]
[1749342818246,0.33775344,105670.0,105660.0,1.74273813]
[1749342818444,0.45579666,105670.0,105660.0,1.74273813]
[1749342818647,0.76579666,105670.0,105660.0,1.74273813]
[1749342818848,0.45579666,105670.0,105660.0,1.74273813]
[1749342819255,0.45379666,105670.0,105660.0,1.74273813]
[1749342820350,0.45179666,105670.0,105660.0,1.74273813]
[1749342820550,0.45279666,105670.0,105660.0,1.74273813]
[1749342821353,0.45279666,105670.0,105660.0,1.78879553]
[1749342821856,0.44874788,105670.0,105660.0,1.78879553]
[1749342822155,0.47824698,105670.0,105660.0,1.74273813]
[1749342822354,0.47824698,105670.0,105660.0,1.72735712]
[1749342824963,0.48229576,105670.0,105660.0,1.72735712]
[1749342825165,0.48209576,105670.0,105660.0,1.72735712]
[1749342826066,0.47804698,105670.0,105660.0,1.72735712]
[1749342827359,0.37840698,105670.0,105660.0,1.72735712]
[1749342827561,0.47804698,105670.0,105660.0,1.72735712]
[1749342832069,0.33050466,105670.0,105660.0,1.81774921]
[1749342832571,0.23086466,105670.0,105660.0,2.00693111]
[1749342832773,0.33050466,105670.0,105660.0,2.00693111]
[1749342833269,0.33050466,105670.0,105660.0,1.81774921]
[1749342833968,0.32950466,105670.0,105660.0,1.81774921]
[1749342834271,0.32950466,105670.0,105660.0,1.81874921]
[1749342835173,0.32950466,105670.0,105660.0,1.81974921]
[1749342835568,0.32950466,105670.0,105660.0,1.72935712]
[1749342835764,0.32950466,105670.0,105660.0,1.82095024]
[1749342838371,0.32950466,105670.0,105660.0,2.01013214]
[1749342838671,0.32950466,105670.0,105660.0,1.82095024]
[1749342840369,0.32950466,105670.0,105660.0,2.01013214]
[1749342840571,0.32950466,105670.0,105660.0,1.82095024]
[1749342841369,0.0002,105670.0,105660.0,2.54580854]
[1749342841571,1.01745567,105700.0,105670.0,0.1428656]
[1749342841779,1.63473757,105700.0,105690.0,0.7216]
[1749342842066,1.5167452,105700.0,105690.0,0.76885954]
[1749342842270,1.5167452,105700.0,105690.0,0.85995954]
[1749342842475,1.6109452,105700.0,105690.0,0.85995954]
[1749342842775,1.6119452,105700.0,105690.0,0.85995954]
[1749342842968,1.73013757,105700.0,105690.0,0.8127]
[1749342843275,1.73113757,105700.0,105690.0,0.8127]
[1749342843773,1.77847798,105700.0,105690.0,0.8127]
[1749342844169,1.66433439,105700.0,105690.0,0.8127]
[1749342844473,1.66633439,105700.0,105690.0,0.8127]
[1749342846975,1.66633439,105700.0,105690.0,1.1069]
[1749342847168,1.66633439,105700.0,105690.0,1.18155509]
[1749342851375,1.22757059,105700.0,105690.0,1.18155509]
[1749342851573,0.65121009,105700.0,105690.0,1.18155509]
[1749342851768,0.43431009,105700.0,105690.0,1.18255509]
[1749342851969,0.45431009,105700.0,105690.0,1.18255509]
[1749342852365,0.16538919,105700.0,105690.0,1.18255509]
[1749342852570,0.45429949,105700.0,105690.0,1.18255509]
[1749342853070,0.34429949,105700.0,105690.0,1.18255509]
[1749342853478,0.34409949,105700.0,105690.0,1.18255509]
[1749342853677,0.34429949,105700.0,105690.0,1.18255509]
[1749342854267,0.72429949,105700.0,105690.0,1.18255509]
[1749342854978,0.72429949,105700.0,105690.0,1.27385509]
[1749342855182,0.72429949,105700.0,105690.0,1.36055509]
[1749342855672,0.62469949,105700.0,105690.0,1.36055509]
[1749342855881,0.72429949,105700.0,105690.0,1.84985509]
[1749342857777,0.11819237,105710.0,105690.0,1.44470729]
[1749342858074,0.189389,105740.0,105720.0,0.0945366]
[1749342858275,0.52913753,105740.0,105730.0,1.37112474]
[1749342858473,0.57607444,105740.0,105730.0,1.37112474]
[1749342858671,0.68627444,105740.0,105730.0,1.37112474]
[1749342859083,0.57627444,105740.0,105730.0,1.37112474]
[1749342859278,0.66827444,105740.0,105730.0,1.37112474]
[1749342859475,0.66827444,105740.0,105730.0,0.75758474]
[1749342859679,0.92597444,105740.0,105730.0,0.75758474]
[1749342859879,1.02457444,105740.0,105730.0,0.75758474]
[1749342860181,1.33191882,105740.0,105730.0,0.75758474]
[1749342862070,1.21372645,105740.0,105730.0,0.75758474]
[1749342862277,1.42037909,105740.0,105730.0,0.74221046]
[1749342862582,1.23122708,105740.0,105730.0,0.74221046]
[1749342864879,1.23122708,105740.0,105730.0,0.72210254]
[1749342867582,1.23122708,105740.0,105730.0,0.36130254]
[1749342870486,1.23122708,105740.0,105730.0,0.65550254]
[1749342870674,1.23122708,105740.0,105730.0,0.29470254]
[1749342870879,1.23122708,105740.0,105730.0,0.65550254]
[1749342872187,1.14234399,105740.0,105730.0,0.65550254]
[1749342873278,1.28429334,105740.0,105730.0,0.65550254]
[1749342874787,1.31778451,105740.0,105730.0,0.64012823]
[1749342876681,1.31778451,105740.0,105730.0,0.3608]
[1749342882389,1.52443715,105740.0,105730.0,0.3608]
[1749342883292,1.37722521,105740.0,105730.0,0.3608]
[1749342883495,0.1890567,105730.0,105720.0,0.90907]
[1749342883686,1.47538374,105730.0,105720.0,1.26987]
[1749342884086,1.35740728,105730.0,105720.0,1.26987]
[1749342884890,1.35740728,105730.0,105720.0,1.25449566]
[1749342885094,1.35740728,105730.0,105720.0,1.25549566]
[1749342885693,1.35740728,105730.0,105720.0,1.25649566]
[1749342889101,1.2099367,105730.0,105720.0,1.25649566]
[1749342889402,1.56439625,105730.0,105720.0,1.25649566]
[1749342889702,1.35774361,105730.0,105720.0,1.25649566]
[1749342890804,1.36179239,105730.0,105720.0,1.25649566]
[1749342894808,1.36179239,105730.0,105720.0,1.24112132]
[1749342898423,1.56844503,105730.0,105720.0,1.24112132]
[1749342900809,1.13756503,105730.0,105720.0,1.24112132]
[1749342901017,1.13756503,105730.0,105720.0,1.28708771]
[1749342901018,1.63841146,105730.0,105720.0,1.28708771]
[1749342901207,1.43175882,105730.0,105720.0,1.28708771]
[1749342901409,1.31350548,105730.0,105720.0,1.28708771]
[1749342904220,1.43175882,105730.0,105720.0,1.24112132]
[1749342905321,1.31350548,105730.0,105720.0,1.24112132]
[1749342905521,1.46131239,105730.0,105720.0,1.24112132]
[1749342905723,1.46131239,105730.0,105720.0,1.22574687]
[1749342912127,1.52015812,105730.0,105720.0,1.22574687]
[1749342915327,1.61165812,105730.0,105720.0,1.22574687]
[1749342915727,1.61165812,105730.0,105720.0,1.21037248]
[1749342916530,1.61165812,105730.0,105720.0,0.48877248]
[1749342916731,1.61165812,105730.0,105720.0,1.21037248]
[1749342917426,1.61165812,105730.0,105720.0,0.48877248]
[1749342917735,1.61165812,105730.0,105720.0,1.21037248]
[1749342922029,1.75945599,105730.0,105720.0,1.21037248]
[1749342922231,1.55280335,105730.0,105720.0,1.21037248]
[1749342925234,1.64720335,105730.0,105720.0,1.21037248]
[1749342925840,1.64720335,105730.0,105720.0,1.19499806]
[1749342926535,1.64720335,105730.0,105720.0,0.47339806]
[1749342926836,1.64720335,105730.0,105720.0,1.19499806]
[1749342929837,1.64720335,105730.0,105720.0,1.00292823]
[1749342930034,0.1890745,105720.0,105710.0,0.00014177]
[1749342930339,1.51602179,105720.0,105710.0,0.00014177]
[1749342930734,1.59112471,105720.0,105710.0,0.00014177]
[1749342931034,1.79224931,105720.0,105710.0,0.00014177]
[1749342931237,1.9399919,105720.0,105710.0,0.00314177]
[1749342931436,1.73333926,105720.0,105710.0,0.00314177]
[1749342932635,1.73333926,105720.0,105710.0,0.00514177]
[1749342935442,0.1891103,105700.0,105690.0,0.276]
[1749342935640,1.71077284,105700.0,105690.0,0.56882313]
[1749342935940,1.92073807,105700.0,105690.0,0.2942]
[1749342936134,2.01213807,105700.0,105690.0,0.2942]
[1749342936739,2.01213807,105700.0,105690.0,0.2992]
[1749342936936,2.01213807,105700.0,105690.0,0.3032]
[1749342937137,2.01213807,105700.0,105690.0,0.2982]
[1749342937341,2.01213807,105700.0,105690.0,0.3002]
[1749342937743,2.01213807,105700.0,105690.0,0.2962]
[1749342937934,2.01213807,105700.0,105690.0,0.2982]
[1749342938534,2.01213807,105700.0,105690.0,0.004]
[1749342940435,2.15366217,105700.0,105690.0,0.004]
[1749342941651,2.24416217,105700.0,105690.0,0.004]
[1749342941944,2.12619694,105700.0,105690.0,0.004]
[1749342948448,1.59583694,105700.0,105690.0,0.004]
[1749342948652,2.12627694,105700.0,105690.0,0.004]
[1749342950642,2.13032572,105700.0,105690.0,0.004]
[1749342951849,2.20847261,105700.0,105690.0,0.004]
[1749342952048,2.32643784,105700.0,105690.0,0.004]
[1749342952647,2.3562152,105700.0,105690.0,0.004]
[1749342954153,2.20847261,105700.0,105690.0,0.004]
[1749342954453,2.3562152,105700.0,105690.0,0.004]
[1749342958659,2.0823152,105700.0,105690.0,0.004]
[1749342958859,2.0823152,105700.0,105690.0,0.2787]
[1749342959653,2.1794152,105700.0,105690.0,0.2787]
[1749342960162,2.0823152,105700.0,105690.0,0.35684689]
[1749342960356,2.0825152,105700.0,105690.0,0.35684689]
[1749342960556,2.0825152,105700.0,105690.0,0.2787]
[1749342962060,2.05292052,105700.0,105690.0,0.2787]
[1749342962360,2.05292052,105700.0,105690.0,0.5729]
[1749342964159,2.0825152,105700.0,105690.0,0.5729]
[1749342966956,2.0216255,105700.0,105690.0,0.5729]
[1749342971954,1.6608255,105700.0,105690.0,0.5729]
[1749342976467,1.1303855,105700.0,105690.0,0.5729]
[1749342976667,1.6608255,105700.0,105690.0,0.65104689]
[1749342976869,1.6606255,105700.0,105690.0,0.65104689]
[1749342977062,1.6606255,105700.0,105690.0,0.5729]
[1749342977264,1.6608255,105700.0,105690.0,0.5729]
[1749342977669,2.0216255,105700.0,105690.0,0.5729]
[1749342979170,1.6608255,105700.0,105690.0,0.5729]
[1749342979372,2.0216255,105700.0,105690.0,0.5729]
[1749342979673,1.6608255,105700.0,105690.0,0.65104689]
[1749342980370,2.0216255,105700.0,105690.0,0.65104689]
[1749342980570,1.2299055,105700.0,105690.0,0.65104689]
[1749342981572,1.5907055,105700.0,105690.0,0.65104689]
[1749342982272,1.2299055,105700.0,105690.0,0.65104689]
[1749342982474,1.5907055,105700.0,105690.0,0.65104689]
[1749342982674,1.2299055,105700.0,105690.0,0.5729]
[1749342985373,1.2297055,105700.0,105690.0,0.5729]
[1749342985575,1.2299055,105700.0,105690.0,0.5729]
[1749342985962,1.5907055,105700.0,105690.0,0.5729]
[1749342986374,1.66885239,105700.0,105690.0,0.5729]
[1749342987475,1.30805239,105700.0,105690.0,0.5729]
[1749342987672,1.66885239,105700.0,105690.0,0.5729]
[1749342987871,1.30805239,105700.0,105690.0,0.5729]
[1749342990779,1.66885239,105700.0,105690.0,0.5729]
[1749342991081,1.30805239,105700.0,105690.0,0.5729]
[1749342992066,1.66885239,105700.0,105690.0,0.5729]
[1749342992679,1.30805239,105700.0,105690.0,0.5729]
[1749342997469,1.39915239,105700.0,105690.0,0.5729]
[1749342998781,1.75995239,105700.0,105690.0,0.5729]
[1749342999081,1.49135239,105700.0,105690.0,0.5729]
[1749342999475,1.85215239,105700.0,105690.0,0.5729]
[1749343000981,1.49135239,105700.0,105690.0,0.5729]
[1749343001181,1.33505861,105700.0,105690.0,0.5729]
[1749343001375,1.49135239,105700.0,105690.0,0.5729]
[1749343001981,1.69800503,105700.0,105690.0,0.5729]
[1749343002182,1.55026244,105700.0,105690.0,0.5729]
[1749343002583,1.91106244,105700.0,105690.0,0.5729]
[1749343002880,1.55026244,105700.0,105690.0,0.55752116]
[1749343003069,1.91106244,105700.0,105690.0,0.55752116]
[1749343003382,1.39396866,105700.0,105690.0,0.55752116]
[1749343003584,1.55026244,105700.0,105690.0,0.55752116]
[1749343003879,1.64296244,105700.0,105690.0,0.55752116]
[1749343004181,2.00376244,105700.0,105690.0,0.55752116]
[1749343004386,1.64296244,105700.0,105690.0,0.55752116]
[1749343011984,1.70245639,105700.0,105690.0,0.60386104]
[1749343012185,1.55459656,105700.0,105690.0,0.60386104]
[1749343015090,1.55439656,105700.0,105690.0,0.60386104]
[1749343019296,1.39810278,105700.0,105690.0,0.60386104]
[1749343019592,1.55439656,105700.0,105690.0,0.96466104]
[1749343020196,1.55439656,105700.0,105690.0,0.60386104]
[1749343028097,1.55439656,105700.0,105690.0,0.55752116]
[1749343029694,1.55439656,105700.0,105690.0,0.60382544]
[1749343030901,1.55439656,105700.0,105690.0,0.41822544]
[1749343033299,1.39810278,105700.0,105690.0,0.41822544]
[1749343033501,1.55439656,105700.0,105690.0,0.41822544]
[1749343037500,1.39810278,105700.0,105690.0,0.41822544]
[1749343037710,1.55439656,105700.0,105690.0,0.41822544]
[1749343039409,1.39810278,105700.0,105690.0,0.37192116]
[1749343039711,1.55439656,105700.0,105690.0,0.37192116]
[1749343040603,1.55439656,105700.0,105690.0,0.41823631]
[1749343040803,1.55439656,105700.0,105690.0,0.37192116]
[1749343041002,1.70225639,105700.0,105690.0,0.37192116]
[1749343041203,1.55439656,105700.0,105690.0,0.418236]
[1749343041620,1.55439656,105700.0,105690.0,0.41823676]
[1749343041821,1.55439656,105700.0,105690.0,0.41823722]
[1749343042023,1.4361098,105700.0,105690.0,0.37192116]
[1749343042322,1.64276244,105700.0,105690.0,0.37192116]
[1749343044116,2.08170933,105700.0,105690.0,0.2942]
[1749343047023,2.08170933,105700.0,105680.0,0.62240177]
[1749343047024,0.1891282,105690.0,105680.0,0.72510177]
[1749343047225,1.11754915,105690.0,105680.0,0.72510177]
[1749343048319,1.11754915,105690.0,105680.0,0.72710177]
[1749343048617,1.11754915,105690.0,105680.0,0.72910177]
[1749343048618,1.21104915,105690.0,105680.0,0.72910177]
[1749343050621,1.31048915,105690.0,105680.0,0.72910177]
[1749343052027,1.31048915,105690.0,105680.0,0.77541862]
[1749343052228,1.16266198,105690.0,105680.0,0.77541862]
[1749343053429,1.06916198,105690.0,105680.0,0.77541862]
[1749343053627,1.06916198,105690.0,105680.0,1.10566135]
[1749343054627,0.99101509,105690.0,105680.0,1.10566135]
[1749343056125,0.99506387,105690.0,105680.0,1.10566135]
[1749343058725,1.07321076,105690.0,105680.0,1.10566135]
[1749343060433,1.07321076,105690.0,105680.0,1.06131862]
[1749343062237,1.07321076,105690.0,105680.0,1.10566135]
[1749343066338,0.99506387,105690.0,105680.0,1.46646135]
[1749343066535,1.07321076,105690.0,105680.0,0.09480135]
[1749343066839,1.16951076,105690.0,105680.0,0.09480135]
[1749343067036,1.60929742,105690.0,105660.0,0.9475]
[1749343067237,0.1891819,105660.0,105650.0,0.26629469]
[1749343067439,1.59571957,105660.0,105650.0,0.5142]
[1749343067642,1.78811957,105660.0,105650.0,0.22]
[1749343067937,1.78811957,105660.0,105640.0,0.90447597]
[1749343067938,0.1891998,105650.0,105640.0,0.90447597]
[1749343068128,0.1891998,105650.0,105640.0,1.23447597]
[1749343068129,1.23643771,105650.0,105640.0,1.23447597]
[1749343068331,1.01643771,105650.0,105640.0,0.47375597]
[1749343068528,1.01643771,105650.0,105640.0,0.90447597]
[1749343069247,1.01643771,105650.0,105640.0,0.47375597]
[1749343069448,0.92789358,105650.0,105640.0,0.90447597]
[1749343069747,0.92789358,105650.0,105640.0,0.01735597]
[1749343069748,1.57723771,105650.0,105640.0,0.01735597]
[1749343069948,1.57723771,105650.0,105640.0,0.02035597]
[1749343070440,1.58128649,105650.0,105640.0,0.02035597]
[1749343070642,1.6588405,105650.0,105640.0,0.02035597]
[1749343070832,1.6588405,105650.0,105640.0,0.02235597]
[1749343071748,1.6588405,105650.0,105640.0,0.31655597]
[1749343072049,1.57029637,105650.0,105640.0,0.31655597]
[1749343072946,1.59945216,105650.0,105640.0,0.31655597]
[1749343075447,1.52130527,105650.0,105640.0,0.31655597]
[1749343078241,1.16050527,105650.0,105640.0,0.31655597]
[1749343079847,0.86235838,105650.0,105640.0,0.31655597]
[1749343080038,0.47754527,105650.0,105640.0,0.87175597]
[1749343080444,0.47774527,105650.0,105640.0,0.87175597]
[1749343082148,0.82774527,105650.0,105640.0,0.87175597]
[1749343089356,1.02904527,105650.0,105640.0,0.87175597]
[1749343089555,1.11904527,105650.0,105640.0,0.87175597]
[1749343089763,1.02904527,105650.0,105640.0,0.87175597]
[1749343092157,1.1175894,105650.0,105640.0,0.87175597]
[1749343094454,1.23582985,105650.0,105640.0,0.87175597]
[1749343094649,1.1175894,105650.0,105640.0,0.87175597]
[1749343095559,1.14728572,105650.0,105640.0,0.87175597]
[1749343097768,1.36728572,105650.0,105640.0,0.87175597]
[1749343097967,1.14728572,105650.0,105640.0,0.87175597]
[1749343099466,1.38728572,105650.0,105640.0,0.87175597]
[1749343099664,1.14728572,105650.0,105640.0,0.87175597]
[1749343101964,1.17687244,105650.0,105640.0,0.87175597]
[1749343102161,1.23588587,105650.0,105640.0,0.87175597]
[1749343102571,1.46588587,105650.0,105640.0,0.87175597]
[1749343102865,1.23588587,105650.0,105640.0,0.87175597]
[1749343103469,1.1472399,105650.0,105640.0,0.87175597]
[1749343103770,1.2472399,105650.0,105640.0,0.87175597]
[1749343104081,1.1472399,105650.0,105640.0,0.87175597]
[1749343105467,1.2572399,105650.0,105640.0,0.87175597]
[1749343105661,1.1472399,105650.0,105640.0,0.87175597]
[1749343106674,1.2472399,105650.0,105640.0,0.87175597]
[1749343106871,1.1472399,105650.0,105640.0,0.87175597]
[1749343107270,1.2472399,105650.0,105640.0,0.87175597]
[1749343107466,1.1472399,105650.0,105640.0,0.87175597]
[1749343108168,1.4172399,105650.0,105640.0,0.51095597]
[1749343108375,1.1472399,105650.0,105640.0,0.87175597]
[1749343110175,1.1470399,105650.0,105640.0,0.87175597]
[1749343112077,1.3770399,105650.0,105640.0,0.87175597]
[1749343112372,1.58598679,105650.0,105640.0,0.31655597]
[1749343112575,1.67598679,105650.0,105640.0,0.31655597]
[1749343112779,1.31518679,105650.0,105640.0,0.31655597]
[1749343114685,1.67598679,105650.0,105640.0,0.31655597]
[1749343116985,1.31518679,105650.0,105640.0,0.31655597]
[1749343117186,1.67598679,105650.0,105640.0,0.36124193]
[1749343118388,1.31518679,105650.0,105640.0,0.36124193]
[1749343119588,1.67598679,105650.0,105640.0,0.36124193]
[1749343120490,1.75413368,105650.0,105640.0,0.33888596]
[1749343120682,1.75413368,105650.0,105630.0,0.43094177]
[1749343120683,0.1892177,105640.0,105630.0,0.43094177]
[1749343120887,1.43571696,105640.0,105630.0,0.43094177]
[1749343121086,1.43571696,105640.0,105630.0,0.00014177]
[1749343121787,1.43571696,105640.0,105630.0,0.00214177]
[1749343122282,1.43571696,105640.0,105630.0,0.00314177]
[1749343128892,1.35757007,105640.0,105630.0,0.00314177]
[1749343130294,1.36161885,105640.0,105630.0,0.00314177]
[1749343132194,1.36161885,105640.0,105630.0,0.04748159]
[1749343132695,1.36161885,105640.0,105630.0,0.09220304]
[1749343132895,1.79241885,105640.0,105630.0,0.09220304]
[1749343138496,2.15321885,105640.0,105630.0,0.04786322]
[1749343138704,1.99692507,105640.0,105630.0,0.04786322]
[1749343138898,2.23136574,105640.0,105630.0,0.04786322]
[1749343140203,2.15321885,105640.0,105630.0,0.04786322]
[1749343141708,2.23136574,105640.0,105630.0,0.04786322]
[1749343142213,2.29053432,105640.0,105630.0,0.00314177]
[1749343144808,2.29053432,105640.0,105630.0,0.02036766]
[1749343144809,1.29053432,105640.0,105630.0,0.02036766]
[1749343145007,1.48975202,105640.0,105630.0,0.02036766]
[1749343145315,1.78975202,105640.0,105630.0,0.02036766]
[1749343147513,1.78975202,105640.0,105630.0,0.31156766]
[1749343148714,1.98685202,105640.0,105630.0,0.31156766]
[1749343149407,2.08905202,105640.0,105630.0,0.31156766]
[1749343149608,2.08905202,105640.0,105630.0,0.02036766]
[1749343152116,2.20709005,105640.0,105630.0,0.02036766]
[1749343152316,2.05926288,105640.0,105630.0,0.02036766]
[1749343154022,2.2009858,105640.0,105630.0,0.02036766]
[1749343155313,2.2009858,105640.0,105630.0,0.001]
[1749343155516,0.1892536,105620.0,105610.0,0.3003]
[1749343155818,1.37574738,105620.0,105610.0,0.34620932]
[1749343157121,0.83574738,105620.0,105610.0,0.34820932]
[1749343157314,0.47494738,105620.0,105610.0,0.34820932]
[1749343157618,0.39680049,105620.0,105610.0,0.34820932]
[1749343157915,0.39680049,105620.0,105610.0,0.35020932]
[1749343159618,0.77680049,105620.0,105610.0,0.35020932]
[1749343159819,0.39680049,105620.0,105610.0,0.35020932]
[1749343160615,0.40084927,105620.0,105610.0,0.35020932]
[1749343163025,0.19330238,105620.0,105610.0,0.90028082]
[1749343163323,0.37080927,105620.0,105610.0,0.94462064]
[1749343163512,0.37100927,105620.0,105610.0,0.94462064]
[1749343163714,0.37100927,105620.0,105610.0,1.00374002]
[1749343164112,0.37100927,105620.0,105610.0,0.94462064]
[1749343165323,0.37100927,105620.0,105610.0,1.00374002]
[1749343166426,0.37100927,105620.0,105610.0,1.29794002]
[1749343166624,0.37100927,105620.0,105610.0,1.30794002]
[1749343166825,0.37080927,105620.0,105610.0,1.30794002]
[1749343167126,0.37100927,105620.0,105610.0,1.30794002]
[1749343175731,0.37100927,105620.0,105610.0,0.94714002]
[1749343175931,0.37100927,105620.0,105610.0,1.30794002]
[1749343176427,0.08239567,105620.0,105610.0,1.38608691]
[1749343176632,0.00424878,105620.0,105610.0,1.42999614]
[1749343176825,0.00404878,105620.0,105610.0,1.42999614]
[1749343177225,0.00424878,105620.0,105610.0,1.42999614]
[1749343177532,0.00424878,105620.0,105610.0,1.59999614]
[1749343177827,0.00404878,105620.0,105610.0,1.54087676]
[1749343178032,0.00424878,105620.0,105610.0,1.54087676]
[1749343178626,0.08239567,105620.0,105610.0,1.54087676]
[1749343178825,0.00424878,105620.0,105610.0,1.54087676]
[1749343179428,0.00424878,105620.0,105610.0,1.65924948]
[1749343179628,0.00424878,105620.0,105610.0,1.54087676]
[1749343180426,0.00424878,105620.0,105610.0,1.65924948]
[1749343180635,0.00424878,105620.0,105610.0,1.54087676]
[1749343181633,0.08239567,105620.0,105610.0,1.54087676]
[1749343182133,0.08239567,105620.0,105610.0,1.55603395]
[1749343186731,0.08239567,105620.0,105610.0,1.47788706]
[1749343186936,0.08239567,105620.0,105610.0,1.55603395]
[1749343187536,0.08239567,105620.0,105610.0,1.91683395]
[1749343192146,0.08239567,105620.0,105610.0,1.90167676]
[1749343192538,0.08239567,105620.0,105610.0,2.02004948]
[1749343197444,0.08239567,105620.0,105610.0,1.93180043]
[1749343198647,0.00424878,105620.0,105610.0,1.93180043]
[1749343200849,0.08239567,105620.0,105610.0,1.93180043]
[1749343207650,0.08219567,105620.0,105610.0,2.0797224]
[1749343209949,0.08219567,105620.0,105610.0,1.3581224]
[1749343210151,0.08219567,105620.0,105610.0,2.0797224]
[1749343212549,0.08219567,105620.0,105610.0,1.93180043]
[1749343212751,0.08219567,105620.0,105610.0,2.0797224]
[1749343213151,0.08219567,105620.0,105610.0,2.00157551]
[1749343213448,0.08219567,105620.0,105610.0,1.85365354]
[1749343220554,0.08219567,105620.0,105610.0,2.01085354]
[1749343220858,0.08219567,105620.0,105610.0,1.85365354]
[1749343221959,0.08219567,105620.0,105610.0,1.8537783]
[1749343224457,0.08219567,105620.0,105610.0,1.1321783]
[1749343224655,0.08219567,105620.0,105610.0,1.8537783]
[1749343224857,0.08219567,105620.0,105610.0,1.1321783]
[1749343225158,0.08219567,105620.0,105610.0,1.8537783]
[1749343225866,0.08219567,105620.0,105610.0,1.1321783]
[1749343226064,0.08219567,105620.0,105610.0,1.8537783]
[1749343228467,0.27144917,105620.0,105610.0,2.2842983]
[1749343232165,0.27144917,105620.0,105610.0,2.26941974]
[1749343232366,0.08219567,105620.0,105610.0,2.26941974]
[1749343236768,0.08219567,105620.0,105610.0,2.34756663]
[1749343242176,0.08219567,105620.0,105610.0,2.33278175]
[1749343245070,0.08219567,105620.0,105610.0,1.61118175]
[1749343245580,0.08219567,105620.0,105610.0,2.33278175]
[1749343246577,0.08219567,105620.0,105610.0,1.61118175]
[1749343246774,0.08219567,105620.0,105610.0,2.33278175]
[1749343249278,0.08219567,105620.0,105610.0,2.45115447]
[1749343249479,0.08219567,105620.0,105610.0,1.72955447]
[1749343249679,0.08219567,105620.0,105610.0,2.45115447]
[1749343250174,0.08219567,105620.0,105610.0,1.72955447]
[1749343250679,0.08219567,105620.0,105610.0,2.45115447]
[1749343251175,0.08219567,105620.0,105610.0,1.72955447]
[1749343251369,0.08219567,105620.0,105610.0,1.29903447]
[1749343251575,0.08219567,105620.0,105610.0,2.45107447]
[1749343251777,0.08219567,105620.0,105610.0,2.26180297]
[1749343251978,0.08219567,105620.0,105610.0,2.14343025]
[1749343252381,0.27144927,105620.0,105610.0,2.14343025]
[1749343253674,0.27144927,105620.0,105610.0,1.63484336]
[1749343253879,0.27144927,105620.0,105610.0,2.06528336]
[1749343255383,0.27144927,105620.0,105610.0,1.34368336]
[1749343255680,0.27144927,105620.0,105610.0,1.70448336]
[1749343258884,0.27144927,105620.0,105610.0,1.72203681]
[1749343261683,0.27144927,105620.0,105610.0,1.36123681]
[1749343261889,0.27144927,105620.0,105610.0,1.72203681]
[1749343262189,0.27144927,105620.0,105610.0,1.75170025]
[1749343262582,0.27144927,105620.0,105610.0,1.39090025]
[1749343262786,0.27144927,105620.0,105610.0,1.75170025]
[1749343264390,0.27144927,105620.0,105610.0,1.84045311]
[1749343266687,0.27144927,105620.0,105610.0,1.47965311]
[1749343266883,0.27144927,105620.0,105610.0,1.84041311]
[1749343267698,0.80959616,105620.0,105610.0,1.36124039]
[1749343267888,1.11739616,105620.0,105610.0,0.60095626]
[1749343268193,1.38509654,105620.0,105610.0,0.60153524]
[1749343268395,1.38509654,105620.0,105610.0,0.11196651]
[1749343268594,1.74589654,105620.0,105610.0,0.11196651]
[1749343269084,0.1892715,105610.0,105600.0,0.06178274]
[1749343269289,1.59336528,105610.0,105600.0,0.04450189]
[1749343269491,1.68195141,105610.0,105600.0,0.00014177]
[1749343269996,2.11235141,105610.0,105600.0,0.00014177]
[1749343271095,2.11235141,105610.0,105600.0,0.00214177]
[1749343272088,2.02376528,105610.0,105600.0,0.00214177]
[1749343272294,2.11215312,105610.0,105600.0,0.00214177]
[1749343275497,1.95585934,105610.0,105600.0,0.00214177]
[1749343275696,2.11215312,105610.0,105600.0,0.00214177]
[1749343280496,2.1162019,105610.0,105600.0,0.00214177]
[1749343281304,1.7554019,105610.0,105600.0,0.00214177]
[1749343282103,1.66701406,105610.0,105600.0,0.00214177]
[1749343282304,2.02781406,105610.0,105600.0,0.00214177]
[1749343284310,2.1162019,105610.0,105600.0,0.00214177]
[1749343292620,2.2239019,105610.0,105600.0,0.00214177]
[1749343295324,2.13551406,105610.0,105600.0,0.00214177]
[1749343295729,2.13651406,105610.0,105600.0,0.00114177]
[1749343296129,2.25451614,105610.0,105600.0,0.00114177]
[1749343296830,2.25651614,105610.0,105600.0,0.00014177]
[1749343300327,2.25651614,105610.0,105600.0,0.04512292]
[1749343300927,2.25651614,105610.0,105600.0,0.00014177]
[1749343301130,0.1892894,105600.0,105590.0,0.3218]
[1749343301334,1.47253215,105600.0,105590.0,0.3218]
[1749343301530,0.1893253,105580.0,105570.0,1.14460873]
[1749343301736,0.83142757,105580.0,105570.0,1.68893277]
[1749343301938,0.29513379,105580.0,105570.0,1.68893277]
[1749343302132,0.37328068,105580.0,105570.0,1.68893277]
[1749343302335,0.28466367,105580.0,105570.0,1.68893277]
[1749343302832,0.28466367,105580.0,105570.0,2.00363277]
[1749343303038,0.36281056,105580.0,105570.0,2.00363277]
[1749343303740,0.36281056,105580.0,105570.0,2.00663277]
[1749343303938,0.36281056,105580.0,105570.0,2.00963277]
[1749343304138,0.28466367,105580.0,105570.0,2.00963277]
[1749343304839,0.35893745,105580.0,105570.0,2.00963277]
[1749343305240,0.35893745,105580.0,105570.0,1.64883277]
[1749343305442,0.35893745,105580.0,105570.0,2.00963277]
[1749343305740,0.35893745,105580.0,105570.0,1.95046404]
[1749343305929,0.95523123,105580.0,105570.0,1.33068084]
[1749343306134,0.87708434,105580.0,105570.0,1.20752518]
[1749343306341,0.87708434,105580.0,105570.0,0.84672518]
[1749343306638,0.96570135,105580.0,105570.0,0.84672518]
[1749343307140,0.96570135,105580.0,105570.0,0.84372518]
[1749343307632,0.96570135,105580.0,105570.0,0.84072518]
[1749343310841,0.96975013,105580.0,105570.0,0.84072518]
[1749343311341,0.96975013,105580.0,105570.0,0.66968084]
[1749343312238,0.88113312,105580.0,105570.0,0.66968084]
[1749343312744,0.88113312,105580.0,105570.0,0.43968084]
[1749343313041,0.96975013,105580.0,105570.0,0.3147]
[1749343314231,0.96975013,105580.0,105570.0,0.1065]
[1749343314644,1.27915013,105580.0,105570.0,0.1065]
[1749343315144,1.27915013,105580.0,105570.0,0.15141629]
[1749343315343,1.27915013,105580.0,105570.0,0.1065]
[1749343315950,1.27915013,105580.0,105570.0,0.15141164]
[1749343316443,1.27915013,105580.0,105570.0,0.15140819]
[1749343318347,1.27915013,105580.0,105570.0,0.1065]
[1749343319236,1.27915013,105580.0,105570.0,0.2111]
[1749343320345,1.25029702,105580.0,105570.0,0.2111]
[1749343320544,1.17215013,105580.0,105570.0,0.2111]
[1749343321452,1.01585635,105580.0,105570.0,0.2111]